Cogmind - Beta 13 @@@ ROGUE MODE // 2024.02.29 @ 02:08:44 Player: ktur Result: Destroyed by NC-Z77(R) with Subdweller Machine Gun Performance ------------- Evolutions (0) 0 Regions Visited (2) 400 Robots Destroyed (18) 90 Value Destroyed (372) 372 Prototype IDs (0) 0 Alien Tech Used (0) 0 Bonus (0) 0 TOTAL SCORE: 862 Bonus ------- None Cogmind --------- Core Integrity 0/250 Matter 267/300 Energy 125/125 System Corruption 0% Temperature Cool (0) Movement Rolling (80) Location -10/Subcaves Parts ------- > --- POWER (1) -------- Light Ion Engine > --- PROPULSION (2) --- Wheel Wheel > --- UTILITY (2) ------ Core Shielding Makeshift Light Armor Plating > --- WEAPON (2) ------- Ripper > --- INVENTORY (5) ---- Subdweller Power Source High-capacity Storage Unit ECM Suite Makeshift Light Armor Plating Mining Laser Peak State ------------ > --- POWER ------------ Ion Engine > --- PROPULSION ------- Wheel Wheel > --- UTILITY ---------- High-capacity Storage Unit Makeshift Light Armor Plating > --- WEAPON ----------- Barrage Gun Ripper > --- INVENTORY -------- Light Ion Engine Subdweller Power Source Subdweller Power Source Heat Sink Small Storage Unit Huge Storage Unit Structural Scanner Improved Terrain Scanner Seismic Detector ECM Suite Core Shielding Makeshift Light Armor Plating Heavy Riot Gun Subdweller Laser Battle Cannon Subdweller Shrapnel Launcher Mining Laser Shrapnel Trap Shrapnel Trap Scrap Shield Fragment [Rating: 18] Favorites ----------- Power Ion Engine Engine Ion Engine Propulsion Light Treads Treads Light Treads Wheel Wheel Utility Seismic Detector Device Seismic Detector Storage High-capacity Storage Unit Protection Makeshift Light Armor Plating Weapon Light Assault Rifle Energy Gun Medium Laser Ballistic Gun Light Assault Rifle Special Weapon Mining Laser Slashing Weapon Ripper Build | -11 -10 -10 ------- Run | Yrd Mat Sub Slots Evolved . | . . . Power . | . . . Propulsion . | . . . Utility . | . . . Weapon . | . . . Parts Attached 35 | 7 5 23 Power 2 | 1 . 1 Engine 2 | 1 . 1 Core . | . . . Reactor . | . . . Propulsion 4 | 2 . 2 Treads 2 | 2 . . Leg . | . . . Wheel 2 | . . 2 Hover . | . . . Flight . | . . . Utility 15 | 2 1 12 Device 6 | 1 . 5 Storage 2 | 1 1 . Processor . | . . . Hackware . | . . . Protection 7 | . . 7 Artifact . | . . . Weapon 14 | 2 4 8 Energy Gun 3 | 1 1 1 Energy Cannon . | . . . Ballistic Gun 6 | 1 1 4 Ballistic Cannon . | . . . Launcher . | . . . Special Weapon 4 | . 2 2 Impact Weapon . | . . . Slashing Weapon 1 | . . 1 Piercing Weapon . | . . . Special Melee Weapon . | . . . Unidentified Prototypes . | . . . Parts Lost 5 | . . 5 Power 1 | . . 1 Propulsion 2 | . . 2 Utility . | . . . Weapon 2 | . . 2 Highest Loss Streak 2 | . . 2 To Critical Strikes . | . . . Average Slot Usage (%) 99 | . 100 99 Engine 14 | . 14 14 Treads 18 | . 28 13 Wheel 9 | . . 14 Device 13 | . 14 12 Storage 13 | . 14 13 Energy Gun 11 | . 13 9 Ballistic Gun 14 | . 13 14 Slashing Weapon 2 | . . 3 Naked Turns . | . . . Heaviest Build 57 | 14 49 57 Greatest Support 40 | 40 40 40 Greatest Overweight (x) 5 | . 1 5 Average Overweight (x) 2 | . . 3 Largest Inventory Capacity 20 | 8 20 20 Average Capacity 18 | 7 15 19 Most Carried 20 | 6 14 20 Average Carried 14 | 2 10 17 Final Capacity 20 | 8 20 5 Final Carried 14 | 6 14 5 Class Distribution -------------------- 73% | Mutant 26% | Subdweller-Mutant Dominant Class ---------------- Mutant | -10/Materials Mutant | -10/Subcaves Resources | -11 -10 -10 ----------- Run | Yrd Mat Sub Matter Collected 646 | 276 71 299 Remotely . | . . . Salvage Created 552 | 86 221 245 Parts 34 | 7 11 16 Haulers Intercepted 1 | . 1 . Recyclers Shooed . | . . . Parts Field Recycled . | . . . Retrieved Matter . | . . . Parts Self-Destructed 12 | . . 12 Prevented . | . . . Kills | -11 -10 -10 ------- Run | Yrd Mat Sub Combat Hostiles Destroyed 14 | . 5 9 Guns 14 | . 5 9 Classes Destroyed 9 | 2 4 3 Worker 1 | . 1 . Tunneler 1 | 1 . . Hauler 1 | . 1 . Recycler 1 | 1 . . Swarmer 7 | . 3 4 Grunt 2 | . 2 . Sentry 1 | . . 1 Cobbler 1 | . . 1 Subdweller 4 | . . 4 Best Kill Streak 3 | 1 2 3 Combat Bots Only 3 | . 2 3 Max Kills in Single Turn 1 | 1 1 1 Gunslinging . | . . . Exploded . | . . . Melee . | . . . Uniques/NPCs Destroyed . | . . . Combat | -11 -10 -10 -------- Run | Yrd Mat Sub Hostile Shots Fired 112 | . 29 83 Missed 36 | . 6 30 Damage Taken 1200 | . 268 932 Core 259 | . 82 177 Absorbed by Shields . | . . . Redirected to Shielding 8 | . . 8 Core Remaining (%) 100 | 100 . . Volleys Fired 97 | 6 32 59 Largest 2 | 2 2 2 Hottest 100 | 70 100 100 Shots Fired 171 | 12 60 99 Gun 160 | 12 56 92 Cannon . | . . . Launcher . | . . . Special 11 | . 4 7 Kinetic 93 | 6 28 59 Thermal 78 | 6 32 40 Explosive . | . . . Electromagnetic . | . . . Robot Hit Streak 14 | 7 9 14 Robot Miss Streak 4 | 1 4 4 Penetration Max . | . . . Secondary Targets 1 | . 1 . Max Gunslinging Chain 1 | . 1 . Shots Hit Robots 102 | 8 29 65 Core Hits 36 | 3 13 20 Critical Kills . | . . . Critical Parts Destroyed 2 | . . 2 Critical Strikes 5 | . 1 4 Burn 3 | . 1 2 Destroy 2 | . . 2 Melee Attacks 5 | . . 5 Impact . | . . . Slashing 5 | . . 5 Piercing . | . . . Sneak Attacks . | . . . Combat Hostiles . | . . . Follow-up Attacks . | . . . Damage Inflicted 1396 | 100 333 963 Guns 1358 | 99 332 927 Cannons . | . . . Explosions . | . . . Melee 36 | . . 36 Ramming 2 | 1 1 . Kinetic 690 | 25 108 557 Thermal 668 | 74 224 370 Explosive . | . . . Electromagnetic . | . . . Impact . | . . . Slashing 36 | . . 36 Piercing . | . . . Highest Corruption . | . . . Average Corruption . | . . . Corruption Purged . | . . . Corruption Blocked . | . . . Overload Shots . | . . . Overflow Damage . | . . . Projectiles . | . . . Explosions . | . . . Melee . | . . . Knockbacks . | . . . Impact . | . . . Kinetic . | . . . Secondary . | . . . Self-Inflicted Damage . | . . . Shots . | . . . Rammed 3 | 1 2 . Targets Rammed 3 | 1 2 . Kicked . | . . . Crushed . | . . . Highest Temperature 268 | 60 268 18 Average Temperature 56 | 30 73 7 Received Heat Transfer 294 | . 120 174 Siege Activations . | . . . Robots Corrupted . | . . . Combat Hostiles . | . . . Parts Fried . | . . . Impact Corruptions . | . . . Robots Melted . | . . . Combat Hostiles . | . . . Parts Melted 7 | . 5 2 Heat Transferred 1914 | 222 703 989 Parts Sabotaged . | . . . Parts Stolen . | . . . Parts Stripped . | . . . Power Chain Reactions . | . . . Alert | -11 -10 -10 ------- Run | Yrd Mat Sub Peak Influence 119 | 10 119 . Initial 6 | . 6 . Average 39 | 2 44 . Maximum Alert Level . | . . . Low Security (%) 100 | 100 100 . Level 1 . | . . . Level 2 . | . . . Level 3 . | . . . Level 4 . | . . . Level 5 . | . . . High Security . | . . . Max Security . | . . . Squads Dispatched . | . . . Investigation . | . . . Extermination . | . . . Reinforcement . | . . . Assault . | . . . Garrison . | . . . Intercept . | . . . Searches Triggered . | . . . Construction Impeded . | . . . Haulers Reinforced . | . . . Active Scanning Responses . | . . . Cargo Convoy Interrupts . | . . . Stealth | -11 -10 -10 --------- Run | Yrd Mat Sub Distress Signals 1 | . 1 . Communications Jammed . | . . . Distress Signals . | . . . Times Spotted 29 | . 15 14 Peak Tracking Total 4 | . 4 4 Tactical Retreats 3 | . 1 2 Traps | -11 -10 -10 ------- Run | Yrd Mat Sub Traps Triggered 2 | . . 2 Indirectly . | . . . Trap Hack Attempts . | . . . Triggered . | . . . Disarmed . | . . . Reprogrammed . | . . . Reused 2 | . . 2 Traps Extracted . | . . . Installed 2 | . . 2 Triggered . | . . . Most Traps Carried 2 | . . 2 Machines | -11 -10 -10 ---------- Run | Yrd Mat Sub Machines Disabled . | . . . Max in Single Turn . | . . . Machines Repaired . | . . . Machines Dismantled . | . . . Machines Sabotaged . | . . . Overloaded Fab Kills . | . . . Hacking | -11 -10 -10 --------- Run | Yrd Mat Sub Machines Accessed 5 | . 5 . Terminals 3 | . 3 . Fabricators . | . . . Repair Stations . | . . . Recycling Units 2 | . 2 . Scanalyzers . | . . . Garrison Access . | . . . Total Hacks 18 | . 18 . Successful 9 | . 9 . Failed 9 | . 9 . Catastrophic . | . . . Database Lockouts . | . . . Manual 12 | . 12 . Terminals 14 | . 14 . Fabricators . | . . . Repair Stations . | . . . Recycling Units 4 | . 4 . Scanalyzers . | . . . Garrison Access . | . . . Terminal Hacks 3 | . 3 . Record 1 | . 1 . Robot Analysis 2 | . 2 . Fabricator Hacks . | . . . Repair Station Hacks . | . . . Recycling Unit Hacks 2 | . 2 . Retrieve Components 2 | . 2 . Scanalyzer . | . . . Garrison Access Hacks . | . . . Unauthorized Hacks 4 | . 4 . Terminals 4 | . 4 . Assimilate 2 | . 2 . Botnet 1 | . 1 . Operators 1 | . 1 . Fabricators . | . . . Repair Stations . | . . . Recycling Units . | . . . Scanalyzers . | . . . Garrison Access . | . . . Data Cores Recovered . | . . . Used . | . . . Hacking Detections 4 | . 4 . Full Trace Events . | . . . Feedback Events . | . . . Feedback Blocked . | . . . Robot Schematics Acquired . | . . . Robots Built . | . . . Authchips . | . . . Time . | . . . Total Robot Build Rating . | . . . Part Schematics Acquired . | . . . Parts Built . | . . . Authchips . | . . . Time . | . . . Total Part Build Rating . | . . . Parts Repaired . | . . . Time . | . . . Parts Recycled . | . . . Recycled Matter . | . . . Retrieved Matter . | . . . Retrieved Components 3 | . 3 . Parts Scanalyzed . | . . . Part Schematics Acquired . | . . . Parts Damaged . | . . . Bothacking | -11 -10 -10 ------------ Run | Yrd Mat Sub Used RIF Installer . | . . . Robots Hacked . | . . . Non-combat . | . . . Combat . | . . . Robot Hacks Applied . | . . . Relay Couplers Released . | . . . Fabnet Peak Effective % . | . . . Robots Rewired . | . . . Allies Hacked . | . . . Hacks Repelled . | . . . Allies | -11 -10 -10 -------- Run | Yrd Mat Sub Total Allies 2 | . 2 . Largest Group 1 | . 1 1 Highest-Rated Group 10 | . 10 10 Highest-Rated Ally 10 | . 10 10 Total Orders . | . . . Ally Attacks . | . . . Total Damage . | . . . Kills . | . . . Allies Corrupted . | . . . Allies Melted . | . . . Intel | -11 -10 -10 ------- Run | Yrd Mat Sub Robot Analysis Total 2 | . 2 . Derelict Logs Recovered 1 | . . 1 Drone Launches . | . . . Drone Recoveries . | . . . Exploration | -11 -10 -10 ------------- Run | Yrd Mat Sub Turns Passed 3211 | 108 978 2125 Spaces Moved 1469 | 48 387 1034 Core 2 | 2 . . Treads 621 | 46 387 188 Legs . | . . . Wheels 846 | . . 846 Hover . | . . . Flight . | . . . Fastest Speed 50 | 50 160 80 Average Speed 168 | 155 201 157 Slowest Speed 240 | 160 240 240 Overloaded Moves . | . . . Propulsion Burnouts . | . . . Robots Hopped . | . . . Cave-ins Triggered . | . . . Exploration Rate (%) 40 | 5 53 64 Regions Visited 2 Branch Regions 1 Pre-discovered Areas . | . . . Known Exits Taken . | . . . Unknown Exits Taken 2 | 1 1 . Scrap Searched 10 | . . 10 Spaces Dug 3 | . 2 1 Terrain Destroyed 4 | . 3 1 Melee 1 | . . 1 Projectile 3 | . 3 . AOE . | . . . Terrain Rammed . | . . . Walls Destroyed . | . . . Machines Disabled . | . . . Actions | -11 -10 -10 --------- Run | Yrd Mat Sub Total 2001 | 67 519 1415 Wait 355 | . 83 272 Move 1468 | 48 386 1034 Hop . | . . . Pick Up 28 | 6 9 13 Fast Attach 8 | 7 . 1 Attach 4 | . . 4 Detach . | . . . Swap 23 | . 5 18 Drop 9 | . 2 7 Fire 97 | 6 32 59 Melee 5 | . . 5 Ram . | . . . Kick . | . . . Crush 2 | . 2 . Escape Stasis . | . . . Rewire . | . . . Trap 2 | . . 2 Miscellaneous . | . . . Route ------- -11/Scrapyard -10/Materials (discovered 4 exits: [*Mat x2] / [*Min] / [*Sub]) -10/Subcaves (discovered 2 exits: [*Mat x2]) History --------- Turn | Location | Event 7 | -11/Scrapyard | Discovered new exit (range 15) 109 | -11/Scrapyard | Entered Materials 225 | -10/Materials | Discovered new exit (range 3) 313 | -10/Materials | Build established: Mutant 660 | -10/Materials | Discovered new exit (range 8) 773 | -10/Materials | Discovered new exit (range 5) 1073 | -10/Materials | Discovered new exit (range 6) 1087 | -10/Materials | Entered Subcaves 1087 | -10/Subcaves | Accompanied by 1 ally 1387 | -10/Subcaves | Learned Materials terminal intel 1501 | -10/Subcaves | A swath of the cavern ceiling suddenly collapsed 1576 | -10/Subcaves | Core integrity fell below 50% 1798 | -10/Subcaves | A swath of the cavern ceiling suddenly collapsed 1949 | -10/Subcaves | Shifting Twisted Machinery released Mak. Light Armor Plating 1967 | -10/Subcaves | Shifting Twisted Machinery released Sub. Machine Gun 1967 | -10/Subcaves | Discovered new exit (range 16) 1975 | -10/Subcaves | Build established: Subdweller-Mutant 2719 | -10/Subcaves | Discovered new exit (range 9) 2720 | -10/Subcaves | Shifting Twisted Machinery released Barrage Gun 2724 | -10/Subcaves | Shifting Twisted Machinery released Battle Cannon 2821 | -10/Subcaves | Build established: Mutant 3067 | -10/Subcaves | Core integrity fell below 20% 3180 | -10/Subcaves | A Subdweller sparked back to life 3180 | -10/Subcaves | A Subdweller sparked back to life 3180 | -10/Subcaves | A Subdweller sparked back to life 3212 | -10/Subcaves | Destroyed by NC-Z77(R) with Subdweller Machine Gun Last Messages --------------- 03065_ Ion Engine destroyed. 03068_ S-10 Pest destroyed. 03073_ Acquired 15 matter. 03168_ Triggered Shrapnel Trap. 03168_ An expanding cloud of shrapnel blasts out in all directions. 03180_ 24-MXO(R) creaks and sparks as it begins to move. 03180_ 75-LPB(R) creaks and sparks as it begins to move. 03180_ NC-Z77(R) creaks and sparks as it begins to move. 03187_ Dropped Shrapnel Trap. 03188_ Installed Shrapnel Trap. 03193_ Triggered Piercing Trap. 03193_ Spikes shoot up from the floor. 03193_ Critical hit (Impale). 03195_ Dropped Shrapnel Trap. 03196_ Installed Shrapnel Trap. 03203_ 24-MXO(R) triggered Shrapnel Trap. 03203_ An expanding cloud of shrapnel blasts out in all directions. 03203_ 24-MXO(R) destroyed. 03209_ Acquired 36 matter. 03210_ Barrage Gun destroyed. Map ----- +----------------------------------------------------+ | ?????????????????????????????????????????????????? | | ?????????????????????????????????????????????????? | | ?????????????????????????????????????????????????? | | ?????????????????????????????????????????????????? | | ?????????????????????????????????????????????????? | | ?????????????????????????????????????????????????? | | ?????????????????????????????????????????????????? | | ??????????????????????#######????????????????????? | | ?????????????????????## #????????????????????? | | ?????????????????????# #????????????????????? | | ?????????????????????# #????####???#####????# | | ?????????????????????# #??## ##?## ##??## | | ??????????????????????# #?## ### #### | | ??? ???????????????## ### ## | | ????? ??????????????# ## | | ??????# ?????????????# ## ## | | ???????# ??????####### ##???# | | ??????## ###### ^#### ##### | | ??????# ##; ###### #### | | ??????# ;#### ##?# | | ?# & ;#?## ## | | ?# " ###; ;##### ## | | ?# " ### ;; ;## #### | | ?? ???? ;; ##?# ### | | ??? "& " ??????#;!RR #?# ##?# | | ?? ? # ## ??????###]@! # # ## ##??? | | ??? ?#"####?# ????????#**[!;##### ### ##??# | | ????????????# ???????##!][!;#???## ##??###???# | | ???????????? ???????#!&#[!##????#####?????????#" | | ????????????# ???????#######???????????????????#" | | ????????????##??????????????????????????????????#" | | ????????????????????????????????????????????????## | | ?????????????????????????????????????????????????? | | ?????????????????????????????????????????????????? | | ?????????????????????????????????????????????????# | | ???????????????????????????????????????????????### | | ???????????????????????????????????????????????# | | ???????????????????????????????????????????????# | | ??????????????????????????????????????????????## | | ??????????????????????????????????????????????# | | ??????????????????????????????????????????????# | | ??????????????????????????????????????????????# | | ??????????????????????????????????????????????## % | | ?????????????????????????????????????#####?????# | | ????????????????????????????????????## ###### | | ????????????????????????????????????# | | ????????????????????????????????????# | | ????????????????????????????????????## ## | | ???????????????????????????????????######### ## | | ??????????????????????????????????## #?????# ## | +----------------------------------------------------+ Best States ------------- Heat Dissipation 25 Energy Generation 10 Energy Capacity 250 Matter Stores 300 Matter Capacity 300 Sight Range 16 Terrain Scan Density 10 Armor Coverage 100 Core Shielding 20 Evasion (%) 44 Recoil Reduction 2 Item Schematics ----------------- None Robot Schematics ------------------ None Fabricated ------------ Nothing Alien Tech Used ----------------- None Achievements -------------- None Challenges ------------ None Game ------ Seed ZhirovVariableStabilizer Manual? 0 Play Time 00:13:25 Cumulative 758.4 hours Start 2024.02.29 @ 01:56:00 End 2024.02.29 @ 02:08:44 Sessions 1 Manual Loads 0 Difficulty Rogue Special Mode None Game No. 691 Rogue 691 Adventurer 0 Explorer 0 Win Type - Total 39 Types 14/4/11/2/0/0/5/2/1 Lore% 92 Gallery% 94 Achievement% 84 Wizard Run 0 Options --------- Layout 0 ASCII 0 Keyboard 0 Movement Numpad Keybinds 0 Fullscreen 1 Font 18/Smallcaps Map View 76x50 Zoom Use 0% Tactical HUD 1 Map Filters NONE Filters NONE Steam 1 RUN: cf959fb5-5f19-4c55-bceb-eeb93b75bd54